[Event "Swedish Chess Championship 2019: Weekend 1"]
[Site "Stiga Sports Arena, Arenatorget 1, Eskilstuna, Sweden"]
[Date "2019.07.06"]
[Round "2.2"]
[White "Jakenberg, Jussi"]
[Black "Mardell, Jonas"]
[Result "1/2-1/2"]
[TimeControl "90 minutes + 30 seconds per move from move one"]
[WhiteFideId "1710931"]
[BlackFideId "1705636"]
[WhiteElo "2099"]
[BlackElo "2024"]

1. e4 {[%clk 01:30:56]} {[%emt 00:00:02]} c5 {[%clk 01:28:31]} {[%emt
00:02:23]} 2. Nf3 {[%clk 01:31:22]} {[%emt 00:00:12]} d6 {[%clk 01:28:43]}
{[%emt 00:00:17]} 3. Bb5+ {[%clk 01:31:50]} {[%emt 00:00:03]} Nd7 {[%clk
01:28:59]} {[%emt 00:00:13]} 4. c3 {[%clk 01:32:18]} {[%emt 00:00:03]} a6
{[%clk 01:24:23]} {[%emt 00:05:06]} 5. Ba4 {[%clk 01:32:47]} {[%emt 00:00:01]}
Ngf6 {[%clk 01:18:30]} {[%emt 00:06:22]} 6. Qe2 {[%clk 01:33:00]} {[%emt
00:00:17]} Qc7 {[%clk 01:13:22]} {[%emt 00:05:39]} 7. O-O {[%clk 01:32:14]}
{[%emt 00:01:15]} c4 {[%clk 01:05:41]} {[%emt 00:08:11]} 8. Bc2 {[%clk
01:28:07]} {[%emt 00:04:37]} b5 {[%clk 00:43:26]} {[%emt 00:22:45]} 9. a4
{[%clk 01:26:44]} {[%emt 00:01:53]} Rb8 {[%clk 00:43:40]} {[%emt 00:00:16]} 10.
axb5 {[%clk 01:26:31]} {[%emt 00:00:44]} axb5 {[%clk 00:44:02]} {[%emt
00:00:08]} 11. d3 {[%clk 01:10:11]} {[%emt 00:16:49]} e5 {[%clk 00:36:35]}
{[%emt 00:07:57]} 12. Na3 {[%clk 01:07:21]} {[%emt 00:03:20]} Nc5 {[%clk
00:29:37]} {[%emt 00:07:28]} 13. dxc4 {[%clk 00:55:13]} {[%emt 00:12:39]} bxc4
{[%clk 00:30:00]} {[%emt 00:00:07]} 14. Nxc4 {[%clk 00:55:35]} {[%emt
00:00:08]} Bb7 {[%clk 00:23:28]} {[%emt 00:07:02]} 15. Nfd2 {[%clk 00:52:58]}
{[%emt 00:03:07]} Be7 {[%clk 00:22:17]} {[%emt 00:01:40]} 16. f3 {[%clk
00:39:19]} {[%emt 00:14:09]} h5 {[%clk 00:20:25]} {[%emt 00:02:23]} 17. b4
{[%clk 00:35:22]} {[%emt 00:04:27]} Ne6 {[%emt 00:02:01]} 18. Nb3 {[%clk
00:33:00]} {[%emt 00:00:57]} d5 {[%clk 00:18:23]} {[%emt 00:02:56]} 19. Nca5
{[%clk 00:22:45]} {[%emt 00:10:45]} Ba8 {[%clk 00:12:51]} {[%emt 00:06:02]} 20.
Bd2 {[%clk 00:14:48]} {[%emt 00:08:26]} d4 {[%clk 00:12:46]} {[%emt 00:00:35]}
21. cxd4 {[%clk 00:13:08]} {[%emt 00:02:11]} Qxc2 {[%clk 00:12:25]} {[%emt
00:00:51]} 22. dxe5 {[%clk 00:13:35]} {[%emt 00:00:03]} Nxe4 {[%clk 00:08:27]}
{[%emt 00:04:28]} 23. fxe4 {[%clk 00:08:37]} {[%emt 00:05:28]} Bxb4 {[%clk
00:04:09]} {[%emt 00:04:49]} 1/2-1/2

[Event "Swedish Chess Championship 2019: Weekend 1"]
[Site "Stiga Sports Arena, Arenatorget 1, Eskilstuna, Sweden"]
[Date "2019.07.06"]
[Round "2.3"]
[White "Eriksson, Joel"]
[Black "Nordebrink, Johan"]
[Result "0-1"]
[TimeControl "90 minutes + 30 seconds per move from move one"]
[WhiteFideId "1729233"]
[BlackFideId "1706721"]
[WhiteElo "1998"]
[BlackElo "2109"]

1. d4 {[%clk 01:30:58]} {[%emt 00:00:01]} Nf6 {[%clk 01:30:49]} {[%emt
00:00:11]} 2. Bg5 {[%clk 01:31:23]} {[%emt 00:00:05]} c5 {[%clk 01:29:44]}
{[%emt 00:01:36]} 3. Nc3 {[%clk 01:30:55]} {[%emt 00:00:58]} e6 {[%clk
01:23:14]} {[%emt 00:06:59]} 4. d5 {[%clk 01:30:04]} {[%emt 00:01:21]} d6
{[%clk 01:22:16]} {[%emt 00:01:27]} 5. e4 {[%clk 01:29:48]} {[%emt 00:00:47]}
a6 {[%clk 01:21:15]} {[%emt 00:01:31]} 6. a4 {[%clk 01:29:04]} {[%emt
00:01:13]} Be7 {[%clk 01:20:56]} {[%emt 00:00:49]} 7. Bf4 {[%clk 01:21:20]}
{[%emt 00:08:15]} e5 {[%clk 01:16:40]} {[%emt 00:04:46]} 8. Bg3 {[%clk
01:20:49]} {[%emt 00:01:00]} Qa5 {[%clk 01:14:42]} {[%emt 00:02:28]} 9. f3
{[%clk 01:18:03]} {[%emt 00:03:15]} O-O {[%clk 01:09:11]} {[%emt 00:06:01]} 10.
Bd3 {[%clk 01:16:36]} {[%emt 00:01:58]} Nh5 {[%clk 01:06:43]} {[%emt 00:02:57]}
11. Nge2 {[%clk 01:14:19]} {[%emt 00:02:48]} Qb4 {[%clk 01:03:52]} {[%emt
00:03:20]} 12. b3 {[%clk 01:10:06]} {[%emt 00:04:43]} Qa5 {[%clk 00:53:15]}
{[%emt 00:11:07]} 13. O-O {[%clk 01:06:05]} {[%emt 00:04:32]} Nxg3 {[%clk
00:53:28]} {[%emt 00:00:16]} 14. hxg3 {[%clk 01:06:28]} {[%emt 00:00:07]} Bg5
{[%clk 00:52:32]} {[%emt 00:01:25]} 15. f4 {[%clk 01:05:55]} {[%emt 00:01:05]}
exf4 {[%clk 00:52:03]} {[%emt 00:00:58]} 16. gxf4 {[%clk 01:06:16]} {[%emt
00:00:09]} Bf6 {[%clk 00:52:26]} {[%emt 00:00:06]} 17. e5 {[%clk 01:05:07]}
dxe5 {[%clk 00:52:26]} 18. Ne4 {[%clk 01:05:07]} Qb6 {[%clk 00:52:26]} 19.
Nxf6+ {[%clk 01:05:07]} Qxf6 {[%clk 00:52:26]} 20. Qd2 {[%clk 01:05:07]} Bg4
{[%clk 00:52:26]} 21. Ng3 {[%clk 01:05:07]} Nd7 {[%clk 00:52:26]} 22. Rae1
{[%clk 01:05:07]} Rae8 {[%clk 00:52:26]} 23. Bc4 {[%clk 01:05:07]} exf4 {[%clk
00:52:26]} 24. Rxe8 {[%clk 01:05:07]} Rxe8 {[%clk 00:52:26]} 25. Rxf4 {[%clk
01:05:07]} Re1+ {[%clk 00:52:26]} 26. Nf1 {[%clk 01:05:07]} Qg5 {[%clk
00:52:26]} 27. Qf2 {[%clk 01:05:07]} Ne5 {[%clk 00:52:26]} 28. Qg3 {[%clk
01:05:07]} Nxc4 {[%clk 00:52:26]} 29. bxc4 {[%clk 01:05:07]} h5 {[%clk
00:52:26]} 30. Rxf7 {[%clk 01:05:07]} Kxf7 {[%clk 00:52:26]} 31. Qxe1 {[%clk
01:05:07]} Qf6 {[%clk 00:52:26]} 32. Qe3 {[%clk 01:05:07]} Qd4 {[%clk
00:52:26]} 33. Kf2 {[%clk 01:05:07]} Qxc4 {[%clk 00:52:26]} 34. Qd2 Qxa4 {[%clk
00:05:08]} 35. Ne3 {[%clk 00:04:09]} {[%emt 00:00:36]} Qd4 {[%clk 00:04:22]}
{[%emt 00:01:17]} 0-1

[Event "Swedish Chess Championship 2019: Weekend 1"]
[Site "Stiga Sports Arena, Arenatorget 1, Eskilstuna, Sweden"]
[Date "2019.07.06"]
[Round "2.4"]
[White "Wallgren, Ulf"]
[Black "Andric, Jelena"]
[Result "1/2-1/2"]
[TimeControl "90 minutes + 30 seconds per move from move one"]
[BlackTitle "WFM"]
[WhiteFideId "1706527"]
[BlackFideId "919853"]
[WhiteElo "2013"]
[BlackElo "2099"]

1. e4 {[%clk 01:30:54]} {[%emt 00:00:06]} e6 {[%clk 01:30:48]} {[%emt
00:00:13]} 2. d4 {[%clk 01:30:26]} {[%emt 00:00:57]} c5 {[%clk 01:31:09]}
{[%emt 00:00:10]} 3. c3 {[%clk 01:28:53]} {[%emt 00:02:02]} b6 {[%clk
01:29:39]} {[%emt 00:02:00]} 4. Nf3 {[%clk 01:27:46]} {[%emt 00:01:36]} Bb7
{[%clk 01:28:54]} {[%emt 00:01:16]} 5. Bd3 {[%clk 01:28:03]} {[%emt 00:00:13]}
d6 {[%clk 01:18:36]} {[%emt 00:10:48]} 6. O-O {[%clk 01:26:31]} {[%emt
00:02:03]} g6 {[%clk 01:13:48]} {[%emt 00:05:18]} 7. Re1 {[%clk 01:19:36]}
{[%emt 00:07:25]} Nd7 {[%clk 01:04:10]} {[%emt 00:10:08]} 8. Nbd2 {[%clk
01:16:32]} {[%emt 00:03:33]} Qc7 {[%clk 01:00:13]} {[%emt 00:04:26]} 9. Qe2
{[%clk 01:09:07]} {[%emt 00:07:56]} Ne7 {[%clk 00:55:17]} {[%emt 00:05:26]} 10.
Nf1 {[%clk 01:07:00]} {[%emt 00:02:37]} Bg7 {[%clk 00:54:05]} {[%emt 00:01:42]}
11. Bg5 {[%clk 01:03:35]} {[%emt 00:03:55]} f6 {[%clk 00:52:32]} {[%emt
00:02:04]} 12. Bd2 {[%clk 01:00:43]} {[%emt 00:03:21]} O-O-O {[%clk 00:45:32]}
{[%emt 00:07:31]} 13. b4 {[%clk 00:58:12]} {[%emt 00:03:01]} Nc6 {[%clk
00:41:33]} {[%emt 00:04:28]} 14. a4 {[%clk 00:55:08]} {[%emt 00:03:34]} a5
{[%clk 00:39:21]} {[%emt 00:02:43]} 15. Rab1 {[%clk 00:46:22]} {[%emt
00:09:16]} Rhe8 {[%clk 00:30:06]} {[%emt 00:09:44]} 16. Bb5 {[%clk 00:39:53]}
{[%emt 00:06:59]} e5 {[%clk 00:24:57]} {[%emt 00:05:40]} 17. d5 {[%clk
00:35:08]} {[%emt 00:05:14]} Na7 {[%clk 00:23:27]} {[%emt 00:02:01]} 18. bxa5
{[%clk 00:34:46]} {[%emt 00:00:51]} bxa5 {[%clk 00:19:33]} {[%emt 00:04:24]} 19.
Rb2 {[%clk 00:25:36]} {[%emt 00:09:39]} c4 {[%clk 00:14:58]} {[%emt 00:05:06]}
20. Bxc4 {[%clk 00:18:45]} {[%emt 00:07:21]} Nc5 {[%clk 00:11:43]} {[%emt
00:03:46]} 21. Reb1 {[%clk 00:18:19]} {[%emt 00:00:55]} Ba8 {[%clk 00:10:31]}
{[%emt 00:01:42]} 22. Ba6+ {[%clk 00:12:11]} {[%emt 00:06:37]} Kd7 {[%clk
00:08:22]} {[%emt 00:02:40]} 23. Bb5+ {[%clk 00:12:15]} {[%emt 00:00:26]} Nxb5
{[%clk 00:08:42]} {[%emt 00:00:11]} 24. Qxb5+ {[%clk 00:12:36]} {[%emt
00:00:08]} Ke7 {[%clk 00:08:47]} {[%emt 00:00:25]} 25. c4 {[%clk 00:12:34]}
{[%emt 00:00:33]} Rb8 {[%clk 00:07:40]} {[%emt 00:01:37]} 26. Qxa5 {[%clk
00:07:51]} {[%emt 00:05:12]} Qxa5 {[%clk 00:08:03]} {[%emt 00:00:07]} 27. Bxa5
{[%clk 00:08:13]} {[%emt 00:00:08]} Rxb2 {[%clk 00:08:21]} {[%emt 00:00:12]} 28.
Rxb2 {[%clk 00:08:41]} {[%emt 00:00:02]} Nxa4 {[%clk 00:08:30]} {[%emt
00:00:21]} 29. Rb4 {[%clk 00:07:12]} {[%emt 00:01:57]} Nc5 {[%clk 00:08:52]}
{[%emt 00:00:10]} 30. N1d2 {[%clk 00:06:41]} {[%emt 00:01:00]} Bh6 {[%clk
00:09:12]} {[%emt 00:00:11]} 31. Bb6 {[%clk 00:06:01]} {[%emt 00:01:09]} Nd7
{[%clk 00:07:50]} {[%emt 00:01:53]} 32. Ba7 {[%clk 00:05:56]} {[%emt 00:00:35]}
Rc8 {[%clk 00:07:19]} {[%emt 00:01:01]} 33. Kf1 {[%clk 00:03:59]} {[%emt
00:02:27]} f5 {[%clk 00:07:31]} {[%emt 00:00:19]} 34. Ke2 {[%clk 00:03:09]}
{[%emt 00:01:20]} Rc7 {[%clk 00:07:09]} {[%emt 00:00:50]} 35. Ra4 {[%clk
00:02:41]} {[%emt 00:01:00]} Bb7 {[%clk 00:07:07]} {[%emt 00:00:33]} 36. Be3
{[%clk 00:01:53]} {[%emt 00:01:18]} Bxe3 {[%clk 00:06:42]} {[%emt 00:00:55]} 37.
Kxe3 {[%clk 00:02:03]} {[%emt 00:00:19]} Nc5 {[%clk 00:06:35]} {[%emt
00:00:37]} 38. Ra7 {[%clk 00:02:01]} {[%emt 00:00:31]} Kf6 {[%clk 00:05:27]}
{[%emt 00:01:39]} 39. Ne1 {[%clk 00:02:10]} {[%emt 00:00:21]} fxe4 {[%clk
00:05:40]} {[%emt 00:00:17]} 40. Nc2 {[%clk 00:01:52]} {[%emt 00:00:48]} Rf7
{[%clk 00:05:45]} {[%emt 00:00:24]} 41. Na3 {[%clk 00:01:20]} {[%emt 00:01:03]}
Bxd5 {[%clk 00:05:29]} {[%emt 00:00:46]} 42. Rxf7+ {[%clk 00:01:37]} {[%emt
00:00:12]} Bxf7 {[%clk 00:05:54]} {[%emt 00:00:06]} 43. Nxe4+ {[%clk 00:01:18]}
{[%emt 00:00:48]} Nxe4 {[%clk 00:06:19]} {[%emt 00:00:05]} 44. Kxe4 {[%clk
00:01:40]} {[%emt 00:00:08]} Ke6 {[%clk 00:05:28]} {[%emt 00:01:21]} 45. f4
{[%clk 00:00:48]} {[%emt 00:01:22]} exf4 {[%clk 00:05:24]} {[%emt 00:00:35]} 46.
Kxf4 {[%clk 00:01:15]} {[%emt 00:00:02]} h6 {[%clk 00:05:17]} {[%emt 00:00:37]}
47. Ke4 {[%clk 00:01:30]} {[%emt 00:00:15]} g5 {[%clk 00:05:01]} {[%emt
00:00:46]} 48. Nb5 {[%clk 00:01:41]} {[%emt 00:00:19]} Kd7 {[%clk 00:04:42]}
{[%emt 00:00:48]} 49. Kd4 {[%clk 00:01:18]} {[%emt 00:00:53]} Kc6 {[%clk
00:04:28]} {[%emt 00:00:44]} 50. Nc3 {[%clk 00:01:26]} {[%emt 00:00:23]} Be6
{[%clk 00:04:08]} {[%emt 00:00:49]} 51. Ne4 {[%clk 00:00:50]} {[%emt 00:01:06]}
Bf5 {[%clk 00:04:10]} {[%emt 00:00:29]} 52. Nf6 {[%clk 00:00:57]} {[%emt
00:00:24]} Be6 {[%clk 00:04:01]} {[%emt 00:00:38]} 53. g3 {[%clk 00:01:05]}
{[%emt 00:00:23]} Bf7 {[%clk 00:04:11]} {[%emt 00:00:19]} 54. Ng4 {[%clk
00:01:05]} {[%emt 00:00:29]} h5 {[%clk 00:04:17]} {[%emt 00:00:24]} 55. Nf6
{[%clk 00:01:12]} {[%emt 00:00:23]} h4 {[%clk 00:02:34]} {[%emt 00:02:14]} 56.
Ne4 {[%clk 00:00:51]} {[%emt 00:00:49]} hxg3 {[%clk 00:02:26]} {[%emt
00:00:39]} 57. hxg3 {[%clk 00:00:56]} {[%emt 00:00:25]} g4 {[%clk 00:02:44]}
{[%emt 00:00:12]} 58. Ng5 {[%clk 00:00:47]} {[%emt 00:00:38]} Bg6 {[%clk
00:03:00]} {[%emt 00:00:13]} 59. Ne6 {[%clk 00:01:04]} {[%emt 00:00:15]} Bc2
{[%clk 00:02:33]} {[%emt 00:00:51]} 60. Nf4 {[%clk 00:00:59]} {[%emt 00:00:40]}
Bd1 {[%clk 00:02:06]} {[%emt 00:00:57]} 61. Ng2 {[%clk 00:01:01]} {[%emt
00:00:28]} Bf3 {[%clk 00:02:06]} {[%emt 00:00:30]} 62. Ne1 {[%clk 00:01:02]}
{[%emt 00:00:28]} Bd1 {[%clk 00:02:18]} {[%emt 00:00:19]} 63. Nd3 {[%clk
00:01:21]} {[%emt 00:00:11]} 1/2-1/2

[Event "Swedish Chess Championship 2019: Weekend 1"]
[Site "Stiga Sports Arena, Arenatorget 1, Eskilstuna, Sweden"]
[Date "2019.07.06"]
[Round "2.5"]
[White "Tolen, Michael"]
[Black "Svorono, Gabriel"]
[Result "1-0"]
[TimeControl "90 minutes + 30 seconds per move from move one"]
[WhiteFideId "1714376"]
[BlackFideId "1715623"]
[WhiteElo "2026"]
[BlackElo "2098"]

1. e4 {[%clk 01:30:14]} {[%emt 00:00:46]} c5 {[%clk 01:30:56]} {[%emt
00:00:05]} 2. d4 {[%clk 01:30:35]} {[%emt 00:00:09]} cxd4 {[%clk 01:31:20]}
{[%emt 00:00:03]} 3. c3 {[%clk 01:30:57]} {[%emt 00:00:11]} dxc3 {[%emt
00:00:11]} 4. Nxc3 {[%clk 01:31:16]} {[%emt 00:00:08]} Nc6 {[%clk 01:32:08]}
{[%emt 00:00:04]} 5. Nf3 {[%clk 01:31:30]} {[%emt 00:00:15]} e6 {[%clk
01:32:35]} {[%emt 00:00:03]} 6. Bc4 {[%clk 01:31:16]} {[%emt 00:00:44]} a6
{[%clk 01:33:01]} {[%emt 00:00:05]} 7. O-O {[%clk 01:30:50]} {[%emt 00:00:56]}
Nge7 {[%clk 01:32:22]} {[%emt 00:01:09]} 8. Bg5 {[%clk 01:30:11]} {[%emt
00:01:09]} h6 {[%clk 01:31:35]} {[%emt 00:01:17]} 9. Bh4 {[%clk 01:29:48]}
{[%emt 00:00:53]} b5 {[%clk 01:29:50]} {[%emt 00:02:15]} 10. Bb3 {[%clk
01:29:47]} {[%emt 00:00:31]} Bb7 {[%clk 01:29:44]} {[%emt 00:00:35]} 11. e5
{[%clk 01:25:32]} {[%emt 00:04:47]} Qb8 {[%clk 01:22:16]} {[%emt 00:07:56]} 12.
Qe2 {[%clk 01:02:15]} {[%emt 00:23:47]} Nf5 {[%clk 01:20:54]} {[%emt 00:01:51]}
13. Bg3 {[%clk 00:58:13]} {[%emt 00:04:33]} Nxg3 {[%clk 01:19:07]} {[%emt
00:02:17]} 14. hxg3 {[%clk 00:58:02]} {[%emt 00:00:41]} d5 {[%clk 01:12:05]}
{[%emt 00:07:32]} 15. Nxd5 {[%clk 00:48:16]} {[%emt 00:10:17]} exd5 {[%clk
01:11:43]} {[%emt 00:00:52]} 16. e6 {[%clk 00:48:22]} {[%emt 00:00:26]} f6
{[%clk 01:01:52]} {[%emt 00:10:18]} 17. Qd3 {[%clk 00:35:43]} {[%emt 00:13:10]}
Ne5 {[%clk 00:59:38]} {[%emt 00:02:45]} 18. Nxe5 {[%clk 00:35:37]} {[%emt
00:00:37]} Qxe5 {[%clk 00:59:56]} {[%emt 00:00:09]} 19. Qg6+ {[%clk 00:34:38]}
{[%emt 00:01:30]} Kd8 {[%clk 01:00:20]} {[%emt 00:00:05]} 20. Rfe1 {[%clk
00:29:46]} {[%emt 00:05:23]} Qg5 {[%clk 00:58:53]} {[%emt 00:01:57]} 21. e7+
{[%clk 00:26:21]} {[%emt 00:03:56]} Bxe7 {[%clk 00:58:49]} {[%emt 00:00:30]} 22.
Qf7 {[%clk 00:26:29]} {[%emt 00:00:25]} f5 {[%clk 00:52:57]} {[%emt 00:06:23]}
23. Rad1 {[%clk 00:24:08]} {[%emt 00:02:51]} Qf6 {[%clk 00:48:42]} {[%emt
00:04:44]} 24. Bxd5 {[%clk 00:23:04]} {[%emt 00:01:35]} Qxf7 {[%clk 00:47:11]}
{[%emt 00:02:00]} 25. Bxf7+ {[%clk 00:23:19]} {[%emt 00:00:16]} Bd6 {[%clk
00:47:13]} {[%emt 00:00:26]} 26. Rxd6+ {[%clk 00:23:01]} {[%emt 00:00:50]} Kc7
{[%clk 00:47:39]} {[%emt 00:00:02]} 27. Rg6 {[%clk 00:22:51]} {[%emt 00:00:41]}
Rad8 {[%clk 00:44:33]} {[%emt 00:03:37]} 28. Re7+ {[%clk 00:22:16]} {[%emt
00:01:05]} Rd7 {[%clk 00:44:53]} {[%emt 00:00:09]} 29. Rxd7+ {[%emt 00:00:41]}
Kxd7 {[%clk 00:45:15]} {[%emt 00:00:03]} 30. Rxg7 {[%clk 00:22:05]} {[%emt
00:00:36]} Kd6 {[%clk 00:44:30]} {[%emt 00:01:14]} 31. Bb3 {[%clk 00:21:12]}
{[%emt 00:01:23]} Bc6 {[%clk 00:41:08]} {[%emt 00:03:52]} 32. Rg6+ {[%clk
00:21:03]} {[%emt 00:00:40]} Kc5 {[%clk 00:41:16]} {[%emt 00:00:21]} 33. Rf6
{[%clk 00:21:14]} {[%emt 00:00:20]} Be4 {[%clk 00:40:03]} {[%emt 00:01:43]} 34.
Rxa6 {[%clk 00:21:23]} {[%emt 00:00:21]} Bc6 {[%clk 00:40:01]} {[%emt
00:00:31]} 35. Bc2 {[%clk 00:21:07]} {[%emt 00:00:47]} Re8 {[%clk 00:37:39]}
{[%emt 00:02:50]} 36. b4+ {[%clk 00:20:59]} {[%emt 00:00:38]} Kd5 {[%clk
00:37:59]} {[%emt 00:00:10]} 37. Bxf5 {[%clk 00:20:06]} {[%emt 00:01:24]} Re1+
{[%clk 00:37:57]} {[%emt 00:00:31]} 38. Kh2 {[%clk 00:20:30]} {[%emt 00:00:06]}
Rc1 {[%clk 00:35:52]} {[%emt 00:02:35]} 39. Bg4 {[%clk 00:20:26]} {[%emt
00:00:35]} Kd4 {[%clk 00:35:48]} {[%emt 00:00:33]} 40. Bf3 {[%clk 00:18:42]}
{[%emt 00:02:14]} Be8 {[%clk 00:34:16]} {[%emt 00:02:02]} 41. Rd6+ {[%clk
00:18:25]} {[%emt 00:00:47]} Kc3 {[%clk 00:34:03]} {[%emt 00:00:44]} 42. Bc6
{[%clk 00:18:09]} {[%emt 00:00:45]} Bf7 {[%clk 00:32:23]} {[%emt 00:02:10]} 43.
Bxb5 {[%clk 00:18:05]} {[%emt 00:00:35]} Kxb4 {[%clk 00:32:45]} {[%emt
00:00:08]} 44. a4 {[%clk 00:18:18]} {[%emt 00:00:17]} 1-0

[Event "Swedish Chess Championship 2019: Weekend 1"]
[Site "Stiga Sports Arena, Arenatorget 1, Eskilstuna, Sweden"]
[Date "2019.07.06"]
[Round "2.6"]
[White "Eriksson, Kristian"]
[Black "Johansson, Roland"]
[Result "1/2-1/2"]
[TimeControl "90 minutes + 30 seconds per move from move one"]
[WhiteFideId "1705172"]
[BlackFideId "1716123"]
[WhiteElo "2123"]
[BlackElo "2002"]

1. e4 {[%clk 01:30:52]} {[%emt 00:00:05]} c5 {[%clk 01:30:16]} {[%emt
00:00:46]} 2. Nc3 {[%clk 01:30:42]} {[%emt 00:00:39]} Nc6 {[%clk 01:29:48]}
{[%emt 00:00:59]} 3. Bb5 {[%clk 01:30:57]} {[%emt 00:00:15]} g6 {[%clk
01:30:12]} {[%emt 00:00:08]} 4. Bxc6 {[%clk 01:30:45]} {[%emt 00:00:42]} dxc6
{[%clk 01:30:35]} {[%emt 00:00:07]} 5. d3 {[%clk 01:30:25]} {[%emt 00:00:49]}
Bg7 {[%clk 01:30:52]} {[%emt 00:00:13]} 6. f4 {[%clk 01:26:28]} {[%emt
00:04:27]} Nf6 {[%clk 01:30:35]} {[%emt 00:00:48]} 7. Nf3 {[%clk 01:26:35]}
{[%emt 00:00:21]} O-O {[%clk 01:30:30]} {[%emt 00:00:35]} 8. O-O {[%clk
01:26:53]} {[%emt 00:00:11]} Bg4 {[%clk 01:27:57]} {[%emt 00:03:03]} 9. Qe1
{[%clk 01:22:50]} {[%emt 00:04:33]} c4 {[%clk 01:16:12]} {[%emt 00:12:17]} 10.
dxc4 {[%clk 01:10:41]} {[%emt 00:12:38]} Bxf3 {[%clk 01:13:47]} {[%emt
00:02:56]} 11. Rxf3 {[%clk 01:09:51]} {[%emt 00:01:18]} Qd4+ {[%clk 01:14:01]}
{[%emt 00:00:16]} 12. Be3 {[%clk 01:04:26]} {[%emt 00:05:54]} Qxc4 {[%clk
01:14:21]} {[%emt 00:00:12]} 13. b3 {[%clk 00:54:22]} {[%emt 00:10:33]} Qb4
{[%clk 01:11:22]} {[%emt 00:03:28]} 14. a3 {[%clk 00:47:39]} {[%emt 00:07:14]}
Qa5 {[%clk 01:10:31]} {[%emt 00:01:20]} 15. b4 {[%clk 00:38:12]} {[%emt
00:09:58]} Qc7 {[%clk 01:09:40]} {[%emt 00:01:20]} 16. e5 {[%clk 00:28:34]}
{[%emt 00:10:09]} Nd5 {[%clk 00:59:19]} {[%emt 00:10:51]} 17. Ne4 {[%clk
00:27:06]} {[%emt 00:01:58]} Nxe3 {[%clk 00:58:36]} {[%emt 00:01:13]} 18. Rxe3
{[%clk 00:26:05]} {[%emt 00:01:30]} a5 {[%clk 00:57:12]} {[%emt 00:01:55]} 19.
Rd1 {[%clk 00:22:56]} {[%emt 00:03:38]} axb4 {[%clk 00:55:08]} {[%emt
00:02:35]} 20. axb4 {[%clk 00:23:14]} {[%emt 00:00:13]} 1/2-1/2

[Event "Swedish Chess Championship 2019: Weekend 1"]
[Site "Stiga Sports Arena, Arenatorget 1, Eskilstuna, Sweden"]
[Date "2019.07.06"]
[Round "2.7"]
[White "Eriksson, Hans"]
[Black "Wallenas, Joakim"]
[Result "1/2-1/2"]
[TimeControl "90 minutes + 30 seconds per move from move one"]
[WhiteFideId "1737040"]
[BlackFideId "1728458"]
[WhiteElo "1936"]
[BlackElo "1991"]

1. e4 {[%clk 01:30:57]} {[%emt 00:00:02]} e5 {[%clk 01:30:45]} {[%emt
00:00:15]} 2. Nf3 {[%clk 01:31:22]} {[%emt 00:00:05]} Nc6 {[%clk 01:31:09]}
{[%emt 00:00:07]} 3. Bc4 {[%clk 01:31:48]} {[%emt 00:00:04]} Bc5 {[%clk
01:31:29]} {[%emt 00:00:09]} 4. c3 {[%clk 01:32:14]} {[%emt 00:00:05]} Nf6
{[%clk 01:30:14]} {[%emt 00:01:44]} 5. d3 {[%clk 01:32:37]} {[%emt 00:00:07]}
d6 {[%clk 01:29:29]} {[%emt 00:01:15]} 6. Bb3 {[%clk 01:32:59]} {[%emt
00:00:09]} O-O {[%clk 01:29:18]} {[%emt 00:00:40]} 7. h3 {[%clk 01:32:13]}
{[%emt 00:01:16]} h6 {[%clk 01:27:50]} {[%emt 00:01:58]} 8. O-O {[%clk
01:32:37]} {[%emt 00:00:06]} Be6 {[%clk 01:28:10]} {[%emt 00:00:10]} 9. Re1
{[%clk 01:30:06]} {[%emt 00:03:01]} Qd7 {[%clk 01:17:49]} {[%emt 00:10:51]} 10.
Bxe6 {[%clk 01:24:36]} {[%emt 00:06:00]} fxe6 {[%clk 01:16:34]} {[%emt
00:01:46]} 11. Nbd2 {[%clk 01:17:56]} {[%emt 00:07:09]} Ne7 {[%clk 01:12:28]}
{[%emt 00:04:36]} 12. b4 {[%clk 01:14:19]} {[%emt 00:04:08]} Bb6 {[%clk
01:12:35]} {[%emt 00:00:23]} 13. Nc4 {[%clk 01:14:37]} {[%emt 00:00:12]} Ng6
{[%clk 01:06:59]} {[%emt 00:06:05]} 14. a4 {[%clk 01:08:58]} {[%emt 00:06:09]}
c6 {[%clk 01:05:32]} {[%emt 00:01:57]} 15. Nxb6 {[%clk 01:09:02]} {[%emt
00:00:27]} axb6 {[%clk 01:05:53]} {[%emt 00:00:10]} 16. Be3 {[%clk 01:09:10]}
{[%emt 00:00:21]} c5 {[%clk 01:04:36]} {[%emt 00:01:47]} 17. Qb3 {[%clk
00:54:49]} {[%emt 00:14:50]} Rf7 {[%clk 00:53:54]} {[%emt 00:11:13]} 18. a5
{[%clk 00:45:17]} {[%emt 00:10:02]} bxa5 {[%clk 00:52:37]} {[%emt 00:01:47]} 19.
Rxa5 {[%clk 00:45:14]} {[%emt 00:00:33]} Rxa5 {[%clk 00:51:52]} {[%emt
00:01:15]} 20. bxa5 {[%clk 00:45:26]} {[%emt 00:00:18]} Qc8 {[%clk 00:46:09]}
{[%emt 00:06:12]} 21. Qb6 {[%clk 00:43:15]} {[%emt 00:02:41]} Rd7 {[%clk
00:35:40]} {[%emt 00:11:00]} 22. Nd2 {[%clk 00:40:15]} {[%emt 00:03:29]} Nf4
{[%clk 00:28:31]} {[%emt 00:07:39]} 23. Bxf4 {[%clk 00:39:43]} {[%emt
00:01:02]} exf4 {[%clk 00:28:54]} {[%emt 00:00:07]} 24. Nc4 {[%clk 00:39:30]}
{[%emt 00:00:42]} Ne8 {[%clk 00:23:47]} {[%emt 00:05:38]} 25. e5 {[%clk
00:38:24]} {[%emt 00:01:37]} Qd8 {[%clk 00:19:03]} {[%emt 00:05:13]} 26. Qxd8
{[%clk 00:33:10]} {[%emt 00:05:45]} Rxd8 {[%clk 00:19:26]} {[%emt 00:00:06]} 27.
exd6 {[%clk 00:32:57]} {[%emt 00:00:43]} Nxd6 {[%clk 00:18:58]} {[%emt
00:00:57]} 28. Rxe6 {[%clk 00:32:44]} {[%emt 00:00:44]} Nxc4 {[%clk 00:16:05]}
{[%emt 00:03:23]} 29. dxc4 {[%clk 00:33:09]} {[%emt 00:00:06]} Ra8 {[%clk
00:15:56]} {[%emt 00:00:38]} 30. Rb6 {[%clk 00:33:01]} {[%emt 00:00:38]} Rxa5
{[%clk 00:15:34]} {[%emt 00:00:52]} 31. Rxb7 {[%clk 00:33:18]} {[%emt
00:00:14]} Ra4 {[%clk 00:15:47]} {[%emt 00:00:17]} 1/2-1/2